fUST/lending_fUST_20250104
["ID","MTS","AMOUNT","RATE_DAILY","PERIOD"]
[347607786,1735947038685,-500.0,0.00019178,2]
[347607788,1735947038694,-500.0,0.00019178,2]
[347607790,1735947038704,-500.0,0.00019178,2]
[347607792,1735947038713,-386.74913043,0.00019178,2]
[347607794,1735947038722,-500.0,0.00019178,2]
[347607796,1735947038732,-500.0,0.00019178,2]
[347607798,1735947038741,-500.0,0.00019178,2]
[347607800,1735947038751,-500.0,0.00019178,2]
[347607802,1735947038760,-500.0,0.00019178,2]
[347607804,1735947038770,-793.92,0.00019178,2]
[347607806,1735947038779,-500.0,0.00019178,2]
[347607808,1735947038789,-500.0,0.00019178,2]
[347607811,1735947038798,-535.57030698,0.00019178,2]
[347607812,1735947038808,-500.0,0.00019178,2]
[347607815,1735947038817,-500.0,0.00019178,2]
[347607816,1735947038827,-500.0,0.00019178,2]
[347607818,1735947038837,-2248.03,0.00019178,2]
[347607820,1735947038846,-500.0,0.00019178,2]
[347607822,1735947038856,-500.0,0.00019178,2]
[347607824,1735947038864,-500.0,0.00019178,2]
[347607827,1735947038874,-500.0,0.00019178,2]
[347607829,1735947038883,-500.0,0.00019178,2]
[347607831,1735947038893,-500.0,0.00019178,2]
[347607832,1735947038902,-500.0,0.00019178,2]
[347607833,1735947038911,-500.0,0.00019178,2]
[347607834,1735947038920,-500.0,0.00019178,2]
[347607835,1735947038930,-500.0,0.00019178,2]
[347607837,1735947038939,-500.0,0.00019178,2]
[347607840,1735947038949,-500.0,0.00019178,2]
[347607841,1735947038958,-500.0,0.00019178,2]
[347607843,1735947038968,-500.0,0.00019178,2]
[347607845,1735947038977,-500.0,0.00019178,2]
[347607847,1735947038987,-500.0,0.00019178,2]
[347607849,1735947038996,-500.0,0.00019178,2]
[347607851,1735947039005,-500.0,0.00019178,2]
[347607853,1735947039014,-500.0,0.00019178,2]
[347607854,1735947039023,-500.0,0.00019178,2]
[347607855,1735947039034,-500.0,0.00019178,2]
[347607857,1735947039043,-500.0,0.00019178,2]
[347607858,1735947039053,-500.0,0.00019178,2]
[347607860,1735947039062,-500.0,0.00019178,2]
[347607862,1735947039072,-500.0,0.00019178,2]
[347607864,1735947039081,-500.0,0.00019178,2]
[347607866,1735947039090,-500.0,0.00019178,2]
[347607868,1735947039100,-500.0,0.00019178,2]
[347607870,1735947039109,-500.0,0.00019178,2]
[347607872,1735947039118,-500.0,0.00019178,2]
[347607874,1735947039128,-504.0,0.00019178,2]
[347607876,1735947039138,-1966.04,0.00019178,2]
[347607878,1735947039147,-500.0,0.00019178,2]
[347607880,1735947039157,-761.37,0.00019178,2]
[347607882,1735947039166,-500.0,0.00019178,2]
[347607884,1735947039176,-609.8,0.00019178,2]
[347607886,1735947039185,-500.0,0.00019178,2]
[347607888,1735947039194,-500.0,0.00019178,2]
[347607890,1735947039203,-557.61,0.00019178,2]
[347607892,1735947039213,-500.0,0.00019178,2]
[347607894,1735947039222,-500.0,0.00019178,2]
[347607896,1735947039232,-214.53609769,0.00019178,2]
[347607898,1735947039241,-500.0,0.00019178,2]
[347607900,1735947039251,-500.0,0.00019178,2]
[347607902,1735947039260,-500.0,0.00019178,2]
[347607904,1735947039270,-500.0,0.00019178,2]
[347607906,1735947039279,-152.34657847,0.00019178,2]
[347607907,1735947039288,-491.75639438,0.00019178,2]
[347607908,1735947039298,-191.41818503,0.00019178,2]
[347607909,1735947039307,-500.0,0.00019178,2]
[347607910,1735947039317,-500.0,0.00019178,2]
[347607911,1735947039326,-500.0,0.00019178,2]
[347607912,1735947039336,-500.0,0.00019178,2]
[347607913,1735947039345,-500.0,0.00019178,2]
[347607914,1735947039354,-500.0,0.00019178,2]
[347607915,1735947039364,-216.26200128,0.00019178,2]
[347607916,1735947039372,-500.0,0.00019178,2]
[347607917,1735947039382,-500.0,0.00019178,2]
[347607918,1735947039391,-542.4615973,0.00019178,2]
[347607919,1735947039403,-500.0,0.00019178,2]
[347607920,1735947039413,-500.0,0.00019178,2]
[347607921,1735947039422,-500.0,0.00019178,2]
[347607922,1735947039431,-500.0,0.00019178,2]
[347607923,1735947039441,-500.0,0.00019178,2]
[347607924,1735947039450,-500.0,0.00019178,2]
[347607925,1735947039459,-790.38,0.00019178,2]
[347607926,1735947039468,-500.0,0.00019178,2]
[347607927,1735947039479,-500.0,0.00019178,2]
[347607929,1735947039488,-500.0,0.00019178,2]
[347607930,1735947039497,-500.0,0.00019178,2]
[347607932,1735947039507,-500.0,0.00019178,2]
[347607934,1735947039516,-500.0,0.00019178,2]
[347607936,1735947039525,-500.0,0.00019178,2]
[347607938,1735947039535,-423.60396164,0.00019178,2]
[347607940,1735947039545,-500.0,0.00019178,2]
[347607942,1735947039554,-500.0,0.00019178,2]
[347607944,1735947039564,-500.0,0.00019178,2]
[347607946,1735947039573,-500.0,0.00019178,2]
[347607961,1735947039728,-500.0,0.00019178,2]
[347607963,1735947039739,-500.0,0.00019178,2]
[347607966,1735947039749,-559.81,0.00019178,2]
[347607968,1735947039759,-500.0,0.00019178,2]
[347607969,1735947039768,-500.0,0.00019178,2]
[347607971,1735947039778,-501.45,0.00019178,2]
[347607973,1735947039787,-500.0,0.00019178,2]
[347607975,1735947039797,-500.0,0.00019178,2]
[347607977,1735947039806,-500.0,0.00019178,2]
[347607979,1735947039816,-500.0,0.00019178,2]
[347607981,1735947039825,-500.0,0.00019178,2]
[347607983,1735947039835,-500.0,0.00019178,2]
[347607986,1735947039845,-646.13,0.00019178,2]
[347607988,1735947039855,-500.0,0.00019178,2]
[347607990,1735947039864,-500.0,0.00019178,2]
[347607992,1735947039874,-306.91271428,0.00019178,2]
[347607993,1735947039883,-500.0,0.00019178,2]
[347607994,1735947039892,-500.0,0.00019178,2]
[347607995,1735947039901,-832.12,0.00019178,2]
[347607996,1735947039913,-500.0,0.00019178,2]
[347607997,1735947039923,-500.0,0.00019178,2]
[347607998,1735947039932,-500.0,0.00019178,2]
[347607999,1735947039941,-500.0,0.00019178,2]
[347608000,1735947039950,-1056.67,0.00019178,2]
[347608001,1735947039959,-22258.71446453,0.00019178,2]
[347608002,1735947039974,-2293.92553547,0.00019178,2]
[347608003,1735947039984,-500.0,0.00019178,2]
[347608004,1735947039993,-500.0,0.00019178,2]
[347608005,1735947040003,-500.0,0.00019178,2]
[347608006,1735947040012,-500.0,0.00019178,2]
[347608007,1735947040022,-1054.58,0.00019178,2]
[347608008,1735947040032,-500.0,0.00019178,2]
[347608009,1735947040041,-500.0,0.00019178,2]
[347608010,1735947040051,-500.0,0.00019178,2]
[347608011,1735947040060,-500.0,0.00019178,2]
[347608012,1735947040070,-500.0,0.00019178,2]
[347608013,1735947040079,-500.0,0.00019178,2]
[347608015,1735947040088,-500.0,0.00019178,2]
[347608016,1735947040098,-650.0,0.00019178,2]
[347608017,1735947040108,-1402.7,0.00019178,2]
[347608018,1735947040117,-829.64,0.00019178,2]
[347608019,1735947040127,-500.0,0.00019178,2]
[347608020,1735947040136,-500.0,0.00019178,2]
[347608021,1735947040146,-500.0,0.00019178,2]
[347608022,1735947040155,-500.0,0.00019178,2]
[347608023,1735947040167,-500.0,0.00019178,2]
[347608024,1735947040176,-2338.76,0.00019178,2]
[347608025,1735947040186,-500.0,0.00019178,2]
[347608026,1735947040195,-500.0,0.00019178,2]
[347608027,1735947040204,-500.0,0.00019178,2]
[347608028,1735947040214,-500.0,0.00019178,2]
[347608029,1735947040223,-500.0,0.00019178,2]
[347608031,1735947040233,-500.0,0.00019178,2]
[347608033,1735947040242,-983.46,0.00019178,2]
[347608035,1735947040251,-500.0,0.00019178,2]
[347608037,1735947040260,-500.0,0.00019178,2]
[347608039,1735947040271,-500.0,0.00019178,2]
[347608041,1735947040281,-2636.77,0.00019178,2]
[347608043,1735947040291,-188.86473845,0.00019178,2]
[347608045,1735947040301,-500.0,0.00019178,2]
[347608047,1735947040310,-86.16584085,0.00019178,2]
[347608060,1735947040422,-413.83415915,0.00019178,2]
[347608062,1735947040431,-500.0,0.00019178,2]
[347608064,1735947040441,-500.0,0.00019178,2]
[347608066,1735947040450,-399.51969541,0.00019178,2]
[347608068,1735947040460,-500.0,0.00019178,2]
[347608070,1735947040469,-500.0,0.00019178,2]
[347608072,1735947040479,-44.23649119,0.00019178,2]
[347609010,1735947693010,163.451792,0.00013973,2]
[347609011,1735947875914,371.5672224,0.00025,120]
[347609047,1735948232702,-300.0,0.00018499,2]
[347609049,1735948232712,-2487.40998117,0.000185,2]
[347609118,1735948238629,-490.2451444,0.000185,2]
[347609119,1735948238642,-11283.39505716,0.000185,2]
[347609120,1735948238654,-10133.0,0.000185,2]
[347609121,1735948238667,-1156.33572,0.000185,2]
[347609122,1735948238678,-1491.33674368,0.000185,2]
[347609123,1735948238759,-4629.49188926,0.000185,2]
[347609467,1735948243818,-2080.19188378,0.000185,2]
[347610324,1735948561412,166.780512,0.00013973,2]
[347610394,1735949431934,-9127.6740862,0.00018233,2]
[347610395,1735949431945,-795.93292385,0.00018299,2]
[347610398,1735949431956,-155.55659496,0.00018399,2]
[347610399,1735949431966,-300.0,0.00018499,2]
[347610400,1735949431976,-16248.59358055,0.000185,2]
[347610402,1735949431986,-500.0,0.00018558,5]
[347610404,1735949431999,-175.696,0.00018632,2]
[347610405,1735949432009,-1475.17870984,0.00018899,2]
[347610407,1735949432018,-11160.61802429,0.00018899,2]
[347610409,1735949432027,-12674.2587165,0.000189,2]
[347610411,1735949432037,-722.0394836,0.000189,2]
[347610414,1735949432047,-158.52,0.00018976,2]
[347610416,1735949432056,-1397.42035609,0.00018997,2]
[347610419,1735949432067,-14000.0,0.00019,4]
[347610421,1735949432076,-1397.42035608,0.00019017,2]
[347610423,1735949432086,-1397.42035608,0.00019037,2]
[347610425,1735949432096,-12199.62970462,0.00019038,2]
[347610531,1735949437654,-474.62901183,0.00019038,2]
[347610533,1735949437664,-1397.42035608,0.00019057,2]
[347610535,1735949437674,-530.14704831,0.00019073,2]
[347610537,1735949437683,-500.0,0.00019073,2]
[347610539,1735949437693,-500.0,0.00019073,2]
[347610541,1735949437703,-500.0,0.00019073,2]
[347610543,1735949437712,-1397.42035608,0.00019077,2]
[347610545,1735949437721,-3000.0,0.00019078,2]
[347610547,1735949437730,-500.0,0.00019094,2]
[347610549,1735949437740,-501.40045987,0.00019094,2]
[347610551,1735949437750,-500.0,0.00019094,2]
[347610553,1735949437759,-500.0,0.00019094,2]
[347610555,1735949437768,-500.0,0.00019094,2]
[347610557,1735949437777,-500.0,0.00019094,2]
[347610559,1735949437787,-563.79005517,0.00019094,2]
[347610561,1735949437796,-500.0,0.00019094,2]
[347610563,1735949437805,-500.0,0.00019094,2]
[347610565,1735949437814,-500.0,0.00019094,2]
[347610567,1735949437823,-500.0,0.00019094,2]
[347610569,1735949437834,-500.0,0.00019094,2]
[347610571,1735949437843,-500.0,0.00019094,2]
[347610573,1735949437853,-500.0,0.00019094,2]
[347610574,1735949437862,-500.0,0.00019094,2]
[347610575,1735949437871,-235.904414,0.00019094,2]
[347610576,1735949437881,-500.0,0.00019094,2]
[347610577,1735949437890,-76.40347596,0.00019094,2]
[347610578,1735949437902,-423.59652404,0.00019094,2]
[347610579,1735949437911,-220.61260797,0.00019094,2]
[347610580,1735949437922,-279.38739203,0.00019094,2]
[347610581,1735949437932,-500.0,0.00019094,2]
[347610582,1735949437945,-500.0,0.00019094,2]
[347610583,1735949437954,-500.0,0.00019094,2]
[347610584,1735949437963,-500.0,0.00019094,2]
[347610585,1735949437972,-500.0,0.00019094,2]
[347610586,1735949437982,-500.0,0.00019094,2]
[347610587,1735949437992,-633.34687238,0.00019094,2]
[347610588,1735949438002,-500.0,0.00019094,2]
[347610589,1735949438011,-500.0,0.00019094,2]
[347610590,1735949438020,-500.0,0.00019094,2]
[347610591,1735949438029,-500.0,0.00019094,2]
[347610592,1735949438038,-500.0,0.00019094,2]
[347610593,1735949438047,-500.0,0.00019094,2]
[347610594,1735949438056,-500.0,0.00019094,2]
[347610595,1735949438065,-500.0,0.00019094,2]
[347610596,1735949438074,-500.0,0.00019094,2]
[347610597,1735949438083,-500.0,0.00019094,2]
[347610598,1735949438093,-500.0,0.00019094,2]
[347610599,1735949438102,-500.0,0.00019094,2]
[347610600,1735949438112,-500.0,0.00019094,2]
[347610601,1735949438123,-500.0,0.00019094,2]
[347610602,1735949438132,-500.0,0.00019094,2]
[347610603,1735949438141,-419.70006286,0.00019094,2]
[347610604,1735949438150,-500.0,0.00019094,2]
[347610605,1735949438159,-500.0,0.00019094,2]
[347610606,1735949438169,-500.0,0.00019094,2]
[347610607,1735949438178,-500.0,0.00019094,2]
[347610608,1735949438187,-500.0,0.00019094,2]
[347610609,1735949438196,-500.0,0.00019094,2]
[347610610,1735949438205,-500.0,0.00019094,2]
[347610611,1735949438215,-500.0,0.00019094,2]
[347610612,1735949438224,-500.0,0.00019094,2]
[347610613,1735949438233,-500.0,0.00019094,2]
[347610614,1735949438242,-500.0,0.00019094,2]
[347610615,1735949438252,-500.0,0.00019094,2]
[347610616,1735949438261,-500.0,0.00019094,2]
[347610617,1735949438270,-500.0,0.00019094,2]
[347610618,1735949438279,-360.81724885,0.00019094,2]
[347610619,1735949438289,-500.0,0.00019094,2]
[347610620,1735949438298,-500.0,0.00019094,2]
[347610621,1735949438307,-500.0,0.00019094,2]
[347610622,1735949438316,-400.0,0.00019094,2]
[347610623,1735949438325,-500.0,0.00019094,2]
[347610624,1735949438334,-500.0,0.00019094,2]
[347610625,1735949438343,-500.0,0.00019094,2]
[347610626,1735949438352,-500.0,0.00019094,2]
[347610627,1735949438361,-500.0,0.00019094,2]
[347610628,1735949438370,-500.0,0.00019094,2]
[347610629,1735949438379,-500.0,0.00019094,2]
[347610630,1735949438388,-500.0,0.00019094,2]
[347610631,1735949438397,-500.0,0.00019094,2]
[347610632,1735949438406,-500.0,0.00019094,2]
[347610633,1735949438415,-500.0,0.00019094,2]
[347610634,1735949438424,-500.0,0.00019094,2]
[347610635,1735949438434,-500.0,0.00019094,2]
[347610636,1735949438443,-500.0,0.00019094,2]
[347610637,1735949438452,-500.0,0.00019094,2]
[347610638,1735949438461,-500.0,0.00019094,2]
[347610639,1735949438471,-500.0,0.00019094,2]
[347610640,1735949438481,-500.0,0.00019094,2]
[347610641,1735949438491,-500.0,0.00019094,2]
[347610642,1735949438502,-500.0,0.00019094,2]
[347610643,1735949438511,-500.0,0.00019094,2]
[347610644,1735949438520,-500.0,0.00019094,2]
[347610645,1735949438529,-500.0,0.00019094,2]
[347610646,1735949438538,-500.0,0.00019094,2]
[347610647,1735949438547,-500.0,0.00019094,2]
[347610648,1735949438556,-500.0,0.00019094,2]
[347610649,1735949438566,-500.0,0.00019094,2]
[347610650,1735949438575,-151.0,0.00019098,2]
[347610651,1735949438584,-151.0,0.00019098,2]
[347610652,1735949438593,-151.0,0.00019098,2]
[347610653,1735949438602,-151.0,0.00019099,2]
[347610654,1735949438611,-151.0,0.00019099,2]
[347610655,1735949438620,-151.0,0.00019099,2]
[347610656,1735949438631,-10143.13444659,0.000191,2]
[347610657,1735949438643,-2266.37252293,0.000191,2]
[347610658,1735949438655,-20447.01573968,0.000191,2]
[347611208,1735949445757,-29923.4772908,0.000191,2]
[347611209,1735949445767,-151.0,0.000191,2]
[347611210,1735949445776,-151.0,0.000191,2]
[347611211,1735949445785,-224.489347,0.000191,2]
[347611212,1735949445795,-151.0,0.000191,2]
[347611213,1735949445804,-151.0,0.000191,2]
[347611214,1735949445813,-151.0,0.000191,2]
[347611216,1735949445823,-151.0,0.000191,2]
[347611218,1735949445832,-151.0,0.000191,2]
[347611220,1735949445842,-151.0,0.000191,2]
[347611222,1735949445852,-1527.871685,0.000191,2]
[347611224,1735949445861,-1527.871685,0.000191,2]
[347611226,1735949445870,-581.360245,0.000191,2]
[347611228,1735949445879,-581.360245,0.000191,2]
[347611230,1735949445888,-151.0,0.000191,2]
[347611232,1735949445897,-151.0,0.000191,2]
[347611234,1735949445906,-151.0,0.000191,2]
[347611236,1735949445915,-151.0,0.000191,2]
[347611238,1735949445925,-500.50169361,0.00019173,2]
[347611240,1735949445934,-500.0,0.00019173,2]
[347611242,1735949445944,-500.0,0.00019173,2]
[347611244,1735949445955,-12674.25871645,0.00019176,2]
[347611246,1735949445964,-204.08227452,0.00019176,2]
[347611248,1735949445973,-500.0,0.00019176,2]
[347611250,1735949445982,-208.46133791,0.00019176,2]
[347611252,1735949445991,-183.81035396,0.00019176,2]
[347611255,1735949446001,-151.0,0.00019176,2]
[347611256,1735949446012,-151.0,0.00019176,2]
[347611258,1735949446021,-152.388252,0.00019176,2]
[347611261,1735949446032,-160.0,0.00019176,2]
[347611262,1735949446041,-133724.72446265,0.00019177,15]
[347611638,1735949685959,157.771732,0.00013973,2]
[347611688,1735950632026,-176.001429,0.00017936,2]
[347611690,1735950632036,-781.17349,0.00017958,2]
[347611692,1735950632045,-917.43160925,0.00018056,2]
[347611694,1735950632056,-1786.11452832,0.000188,2]
[347611696,1735950632064,-2.40865984,0.00018863,2]
[347611699,1735950632082,-297.59134016,0.00018863,2]
[347611701,1735950632091,-9127.67408621,0.00018864,2]
[347611703,1735950632101,-11406.83284495,0.000189,2]
[347611705,1735950632110,-332.57389266,0.000189,2]
[347611707,1735950632120,-481.35965573,0.000189,2]
[347611709,1735950632129,-186.9564952,0.00018986,2]
[347611711,1735950632138,-179.926,0.00018999,2]
[347611713,1735950632147,-40907.48188126,0.00019,5]
[347611715,1735950632157,-158.08,0.00019,2]
[347611717,1735950632166,-11406.8328448,0.00019038,2]
[347611719,1735950632176,-288.7536938,0.00019066,2]
[347612224,1735950640035,-1024.37243125,0.00019066,2]
[347612226,1735950640045,-724.35320191,0.00019066,2]
[347612228,1735950640055,-318.79827708,0.00019073,2]
[347612230,1735950640064,-318.79827708,0.00019074,2]
[347612232,1735950640073,-318.79827708,0.00019075,2]
[347612234,1735950640082,-318.79827708,0.00019076,2]
[347612235,1735950640092,-318.79827708,0.00019077,2]
[347612236,1735950640101,-1230.85460595,0.00019078,2]
[347612238,1735950640111,-151.0,0.000191,2]
[347612240,1735950640120,-151.0,0.000191,2]
[347612242,1735950640129,-151.0,0.000191,2]
[347612244,1735950640138,-500.0,0.00019173,2]
[347612246,1735950640147,-1382.634516,0.00019173,2]
[347612247,1735950640156,-151.0,0.00019174,2]
[347612248,1735950640165,-151.0,0.00019174,2]
[347612249,1735950640175,-500.0,0.00019174,2]
[347612250,1735950640184,-183.25699303,0.00019174,2]
[347612251,1735950640194,-500.0,0.00019174,2]
[347612252,1735950640203,-500.0,0.00019174,2]
[347612253,1735950640212,-500.0,0.00019174,2]
[347612254,1735950640222,-619.61538261,0.00019174,2]
[347612255,1735950640231,-500.0,0.00019174,2]
[347612256,1735950640240,-500.0,0.00019174,2]
[347612257,1735950640250,-500.0,0.00019174,2]
[347612258,1735950640259,-500.0,0.00019174,2]
[347612259,1735950640269,-500.0,0.00019174,2]
[347612260,1735950640279,-500.0,0.00019174,2]
[347612261,1735950640288,-500.0,0.00019174,2]
[347612262,1735950640298,-500.0,0.00019174,2]
[347612263,1735950640307,-500.0,0.00019174,2]
[347612264,1735950640316,-500.0,0.00019174,2]
[347612265,1735950640326,-500.0,0.00019174,2]
[347612266,1735950640335,-500.0,0.00019174,2]
[347612267,1735950640344,-500.0,0.00019174,2]
[347612268,1735950640353,-360.31828127,0.00019174,2]
[347612269,1735950640362,-389.40973964,0.00019174,2]
[347612270,1735950640372,-500.0,0.00019174,2]
[347612271,1735950640381,-458.0,0.00019174,2]
[347612272,1735950640390,-500.0,0.00019174,2]
[347612273,1735950640400,-500.0,0.00019174,2]
[347612274,1735950640409,-500.0,0.00019174,2]
[347612275,1735950640419,-500.0,0.00019174,2]
[347612276,1735950640428,-500.0,0.00019174,2]
[347612277,1735950640438,-500.0,0.00019174,2]
[347612278,1735950640448,-500.0,0.00019174,2]
[347612279,1735950640457,-500.0,0.00019174,2]
[347612280,1735950640466,-500.0,0.00019174,2]
[347612281,1735950640476,-500.0,0.00019174,2]
[347612282,1735950640484,-500.0,0.00019174,2]
[347612283,1735950640494,-500.0,0.00019174,2]
[347612284,1735950640503,-500.0,0.00019174,2]
[347612285,1735950640512,-500.0,0.00019174,2]
[347612286,1735950640522,-500.0,0.00019174,2]
[347612287,1735950640533,-500.0,0.00019174,2]
[347612288,1735950640542,-500.0,0.00019174,2]
[347612289,1735950640552,-356.35568991,0.00019174,2]
[347612290,1735950640562,-570.88557548,0.00019174,2]
[347612291,1735950640571,-500.0,0.00019174,2]
[347612292,1735950640580,-500.0,0.00019174,2]
[347612293,1735950640590,-262.42338212,0.00019174,2]
[347612294,1735950640600,-500.0,0.00019174,2]
[347612295,1735950640609,-500.0,0.00019174,2]
[347612296,1735950640619,-500.0,0.00019174,2]
[347612297,1735950640629,-500.0,0.00019174,2]
[347612298,1735950640640,-171.15319219,0.00019174,2]
[347612299,1735950640649,-500.0,0.00019174,2]
[347612300,1735950640659,-500.0,0.00019174,2]
[347612301,1735950640668,-570.88557548,0.00019174,2]
[347612302,1735950640680,-500.0,0.00019174,2]
[347612303,1735950640690,-570.88557548,0.00019174,2]
[347612304,1735950640700,-500.0,0.00019174,2]
[347612305,1735950640709,-570.88557548,0.00019174,2]
[347612306,1735950640719,-570.88557548,0.00019174,2]
[347612307,1735950640728,-570.88557548,0.00019174,2]
[347612308,1735950640741,-596.63631515,0.00019174,2]
[347612309,1735950640752,-568.84669842,0.00019174,2]
[347612310,1735950640761,-568.84669842,0.00019174,2]
[347612311,1735950640772,-568.84669842,0.00019174,2]
[347612312,1735950640783,-568.84669842,0.00019174,2]
[347612313,1735950640792,-568.84669842,0.00019174,2]
[347612314,1735950640801,-568.84669842,0.00019174,2]
[347612315,1735950640812,-568.84669842,0.00019174,2]
[347612316,1735950640822,-568.84669842,0.00019174,2]
[347612317,1735950640831,-568.84669842,0.00019174,2]
[347612318,1735950640840,-568.84669842,0.00019174,2]
[347612319,1735950640849,-568.84669842,0.00019174,2]
[347612320,1735950640859,-568.84669842,0.00019174,2]
[347612321,1735950640869,-568.84669842,0.00019174,2]
[347612322,1735950640878,-568.84669842,0.00019174,2]
[347612323,1735950640887,-568.84669842,0.00019174,2]
[347612324,1735950640896,-568.84669842,0.00019174,2]
[347612325,1735950640905,-467.28068236,0.00019174,2]
[347612504,1735950645969,-700.0,0.00019173,2]
[347612699,1735950827258,161.435927,0.00013973,2]
[347612784,1735951835048,-462.228,0.00017898,2]
[347613366,1735951840860,-824.1252811,0.00017898,2]
[347613368,1735951840869,-176.00143,0.00017941,2]
[347613370,1735951840880,-3075.6418996,0.00018175,2]
[347613372,1735951840889,-450.558,0.0001822,2]
[347613374,1735951840899,-9127.67408621,0.00018688,2]
[347613376,1735951840908,-300.0,0.00018748,2]
[347613378,1735951840917,-500.0,0.00018899,5]
[347613380,1735951840926,-10646.37732191,0.000189,2]
[347613382,1735951840935,-320.90643715,0.000189,2]
[347613384,1735951840945,-153.2995019,0.000189,2]
[347613386,1735951840955,-222.3771905,0.000189,2]
[347613388,1735951840964,-153.0,0.000189,2]
[347613390,1735951840973,-614.5351938,0.000189,2]
[347613392,1735951840982,-306.0,0.00018952,2]
[347613394,1735951840992,-291.00215613,0.00018977,2]
[347613396,1735951841001,-186.9564953,0.00018984,2]
[347613398,1735951841010,-10646.37732181,0.00019038,2]
[347613400,1735951841019,-2551.41175969,0.00019077,2]
[347613402,1735951841029,-453.35002999,0.00019078,2]
[347613404,1735951841038,-151.0,0.00019175,2]
[347613406,1735951841048,-258.710288,0.00019175,2]
[347613408,1735951841058,-222.74911425,0.00019175,2]
[347613410,1735951841067,-179.926,0.00019175,2]
[347613412,1735951841076,-10646.37732181,0.00019176,2]
[347613414,1735951841085,-151.0,0.00019176,2]
[347613416,1735951841094,-151.0,0.00019176,2]
[347613418,1735951841104,-373.36869792,0.00019176,2]
[347613420,1735951841113,-402.17948696,0.00019176,2]
[347613422,1735951841122,-463.4614658,0.00019176,2]
[347613424,1735951841131,-500.0,0.00019176,2]
[347613426,1735951841140,-500.0,0.00019176,2]
[347613428,1735951841150,-500.0,0.00019176,2]
[347613430,1735951841159,-500.0,0.00019176,2]
[347613432,1735951841169,-500.0,0.00019176,2]
[347613434,1735951841178,-500.0,0.00019176,2]
[347613436,1735951841190,-154.37885996,0.00019176,2]
[347613438,1735951841200,-500.0,0.00019176,2]
[347613440,1735951841209,-500.0,0.00019176,2]
[347613442,1735951841219,-500.0,0.00019176,2]
[347613444,1735951841228,-500.0,0.00019176,2]
[347613446,1735951841237,-500.0,0.00019176,2]
[347613448,1735951841246,-500.0,0.00019176,2]
[347613450,1735951841256,-500.0,0.00019176,2]
[347613452,1735951841265,-500.0,0.00019176,2]
[347613454,1735951841275,-500.0,0.00019176,2]
[347613456,1735951841285,-500.0,0.00019176,2]
[347613458,1735951841295,-500.0,0.00019176,2]
[347613460,1735951841306,-500.0,0.00019176,2]
[347613462,1735951841315,-500.0,0.00019176,2]
[347613464,1735951841325,-500.0,0.00019176,2]
[347613466,1735951841334,-500.0,0.00019176,2]
[347613468,1735951841343,-500.0,0.00019176,2]
[347613470,1735951841354,-500.0,0.00019176,2]
[347613472,1735951841363,-500.0,0.00019176,2]
[347613474,1735951841372,-500.0,0.00019176,2]
[347613476,1735951841382,-500.0,0.00019176,2]
[347613478,1735951841391,-500.0,0.00019176,2]
[347613480,1735951841400,-500.0,0.00019176,2]